bitfinex-derivatives/quotes_BTCF0:USTF0_20230901
["timestamp","ask_amount","ask_price","bid_price","bid_amount"]
[1693602493156,1.05545896,25784.0,25783.0,0.69253808]
[1693602494061,1.05545896,25784.0,25783.0,1.04429017]
[1693602494062,0.25081205,25784.0,25783.0,1.04429017]
[1693602494268,0.01990319,25784.0,25783.0,1.06429017]
[1693602494469,0.09930074,25785.0,25783.0,1.00363408]
[1693602494667,0.09930074,25785.0,25784.0,0.41277631]
[1693602494967,0.23281205,25788.0,25784.0,0.99494831]
[1693602495154,0.23281205,25788.0,25786.0,0.00017]
[1693602495155,0.291052,25787.0,25786.0,0.00017]
[1693602495469,0.436578,25787.0,25786.0,0.67950508]
[1693602495966,0.436578,25787.0,25786.0,0.84953931]
[1693602496368,0.436578,25787.0,25786.0,0.85953931]
[1693602496961,0.437578,25787.0,25786.0,0.87453931]
[1693602497369,0.437578,25787.0,25786.0,0.76516117]
[1693602498369,0.437578,25787.0,25786.0,0.87453931]
[1693602500475,0.437578,25787.0,25786.0,0.76516117]
[1693602501464,0.437578,25787.0,25786.0,0.87453931]
[1693602501670,0.292052,25787.0,25786.0,1.01990031]
[1693602501873,0.001,25787.0,25786.0,1.01990031]
[1693602504565,0.001,25787.0,25786.0,1.02007031]
[1693602504765,0.001,25787.0,25786.0,1.05094592]
[1693602504968,0.001,25787.0,25786.0,1.20514592]
[1693602512064,0.001,25787.0,25786.0,1.22514592]
[1693602524186,0.001,25787.0,25786.0,1.23814592]
[1693602525087,0.00387658,25790.0,25788.0,0.00017]
[1693602525392,0.00387658,25790.0,25789.0,0.75209023]
[1693602525888,0.00387658,25790.0,25789.0,0.99475403]
[1693602526389,0.00587658,25790.0,25789.0,0.99475403]
[1693602526688,0.00387658,25790.0,25789.0,1.01775403]
[1693602526889,0.00587658,25790.0,25789.0,1.04275403]
[1693602529491,0.16077658,25790.0,25789.0,1.04275403]
[1693602529992,0.002,25790.0,25789.0,1.04292403]
[1693602531891,0.00587658,25790.0,25789.0,0.93337589]
[1693602532192,0.11897335,25790.0,25789.0,0.93337589]
[1693602532390,0.00587658,25790.0,25789.0,1.04275403]
[1693602535797,0.00587658,25790.0,25789.0,1.07360957]
[1693602536693,0.16061899,25790.0,25789.0,1.07360957]
[1693602537293,0.00587658,25790.0,25789.0,1.07360957]
[1693602539794,0.16061899,25790.0,25789.0,1.07360957]
[1693602541495,0.16061899,25790.0,25789.0,0.96423143]
[1693602541691,0.16061899,25790.0,25789.0,1.07360957]
[1693602543593,0.16061899,25790.0,25789.0,0.96423143]
[1693602544294,0.16061899,25790.0,25789.0,1.07360957]
[1693602545597,0.16093761,25790.0,25789.0,1.07360957]
[1693602545895,0.00587658,25790.0,25789.0,1.07360957]
[1693602547788,0.19970287,25790.0,25789.0,1.07360957]
[1693602550994,0.00587658,25790.0,25789.0,1.07360957]
[1693602551900,0.00387658,25790.0,25789.0,1.04860957]
[1693602552094,0.00587658,25790.0,25789.0,1.07360957]
[1693602552294,0.29683458,25790.0,25789.0,0.92799957]
[1693602552493,0.49073499,25790.0,25789.0,0.96410343]
[1693602553086,0.49073499,25790.0,25789.0,1.07348157]
[1693602553297,0.34526099,25790.0,25789.0,0.96410343]
[1693602553689,0.19979099,25790.0,25789.0,0.96410343]
[1693602553890,0.002,25790.0,25789.0,1.07365157]
[1693602554195,0.002,25790.0,25789.0,2.26880064]
[1693602554398,0.002,25790.0,25789.0,2.19167994]
[1693602554589,0.002,25790.0,25789.0,2.21167994]
[1693602554795,0.06767121,25792.0,25791.0,0.3]
[1693602554998,0.19391441,25795.0,25794.0,0.3]
[1693602555293,0.19391441,25795.0,25794.0,1.29462803]
[1693602555494,0.97531441,25797.0,25794.0,1.29462803]
[1693602555693,0.19391441,25798.0,25795.0,0.2426638]
[1693602555897,0.19391441,25798.0,25796.0,0.581708]
[1693602556097,0.19391441,25798.0,25797.0,0.8243518]
[1693602556296,0.19391441,25798.0,25797.0,0.99438603]
[1693602556497,0.19391441,25800.0,25798.0,0.3]
[1693602556703,0.19391441,25800.0,25799.0,0.8243038]
[1693602556901,0.471594,25802.0,25799.0,0.8243038]
[1693602556902,0.64523456,25802.0,25799.0,0.75167423]
[1693602557099,0.51983656,25802.0,25799.0,0.58164]
[1693602557299,0.51983656,25802.0,25800.0,0.17003423]
[1693602557605,0.51983656,25802.0,25801.0,0.436197]
[1693602557791,0.51983656,25802.0,25801.0,0.60623123]
[1693602557997,0.52383656,25802.0,25801.0,0.60623123]
[1693602558500,0.330196,25802.0,25801.0,0.60623123]
[1693602558695,0.330194,25802.0,25801.0,0.60623123]
[1693602559002,0.310194,25802.0,25801.0,0.60623123]
[1693602559591,0.310194,25802.0,25801.0,0.60723123]
[1693602560000,0.306194,25802.0,25801.0,0.60723123]
[1693602560200,0.310194,25802.0,25801.0,0.60823123]
[1693602560397,0.1648,25802.0,25801.0,0.61823123]
[1693602560599,0.1608,25802.0,25801.0,0.76880023]
[1693602561604,0.1608,25802.0,25801.0,0.76180023]
[1693602561793,0.1608,25802.0,25801.0,0.76780023]
[1693602563405,0.1608,25802.0,25801.0,0.76180023]
[1693602563711,0.1608,25802.0,25801.0,0.79280023]
[1693602563895,0.1608,25802.0,25801.0,0.79263023]
[1693602564502,0.1608,25802.0,25801.0,0.77463023]
[1693602564809,0.1608,25802.0,25801.0,0.81163023]
[1693602565001,0.1608,25802.0,25801.0,0.81180023]
[1693602565212,0.03139109,25805.0,25802.0,0.00017]
[1693602565405,0.1567,25806.0,25805.0,0.3]
[1693602565603,0.1567,25806.0,25805.0,0.881644]
[1693602565804,0.44006758,25808.0,25805.0,0.881644]
[1693602566006,0.29466858,25808.0,25806.0,0.17003423]
[1693602566305,0.29466858,25808.0,25807.0,0.436205]
[1693602566511,0.00387658,25808.0,25807.0,0.436209]
[1693602566709,0.16057658,25808.0,25807.0,0.436209]
[1693602567310,0.16057658,25808.0,25807.0,0.60624323]
[1693602567912,0.16057658,25808.0,25807.0,0.60824323]
[1693602569013,0.16057658,25808.0,25807.0,0.60924323]
[1693602571507,0.10237029,25808.0,25807.0,0.60924323]
[1693602573018,0.10237029,25808.0,25807.0,0.60824323]
[1693602573517,0.10237029,25808.0,25807.0,0.60624323]
[1693602573823,0.10237029,25808.0,25807.0,0.60724323]
[1693602575110,0.70010971,25808.0,25807.0,0.001]
[1693602575620,0.9264612,25808.0,25807.0,0.001]
[1693602576105,0.03048773,25812.0,25807.0,0.001]
[1693602576106,0.05725181,25820.0,25813.0,0.39358]
[1693602576419,0.19364056,25830.0,25828.0,0.00388]
[1693602576616,0.35134056,25836.0,25830.0,0.3]
[1693602576814,0.1777,25836.0,25831.0,0.5811]
[1693602577121,0.1777,25836.0,25831.0,0.435825]
[1693602577122,0.322949,25836.0,25831.0,0.435825]
[1693602577323,0.1777,25836.0,25831.0,0.435825]
[1693602578514,0.1777,25836.0,25831.0,0.438825]
[1693602578720,0.1777,25836.0,25831.0,0.458825]
[1693602578906,0.1777,25836.0,25831.0,0.461825]
[1693602579305,0.1577,25836.0,25831.0,0.461825]
[1693602579620,0.1777,25836.0,25831.0,0.461825]
[1693602579815,0.1777,25836.0,25831.0,0.441825]
[1693602581230,0.00371,25835.0,25831.0,0.441825]
[1693602581528,0.145265,25833.0,25831.0,0.006]
[1693602581833,0.03244068,25832.0,25831.0,0.006]
[1693602582132,0.05244068,25832.0,25831.0,0.006]
[1693602582424,0.19771068,25832.0,25831.0,0.005]
[1693602582825,0.34298068,25832.0,25831.0,0.005]
[1693602583222,0.34298068,25832.0,25828.0,0.290583]
[1693602583427,0.31054,25832.0,25831.0,0.001]
[1693602583628,0.45581,25832.0,25831.0,0.001]
[1693602583929,0.45581,25832.0,25827.0,0.3]
[1693602583930,0.435894,25827.0,25823.0,0.445319]
[1693602584130,0.435894,25827.0,25822.0,0.29065]
[1693602584131,0.14902,25825.0,25822.0,0.29065]
[1693602584332,0.29433,25825.0,25822.0,0.145325]
[1693602584531,0.00371,25823.0,25822.0,0.145325]
[1693602584732,0.31433,25825.0,25822.0,0.145325]
[1693602584920,0.294352,25823.0,25819.0,0.14534]
[1693602585128,0.17776768,25822.0,25819.0,0.14534]
[1693602585324,0.165327,25822.0,25819.0,0.290683]
[1693602585524,0.165327,25822.0,25819.0,0.26764677]
[1693602585525,0.00371,25820.0,25819.0,0.26764677]
[1693602585724,0.02,25822.0,25821.0,0.0295727]
[1693602585928,1.58885,25835.0,25821.0,0.4655687]
[1693602585929,0.147311,25825.0,25821.0,0.4655687]
[1693602586230,0.167311,25825.0,25821.0,0.4655687]
[1693602586431,0.492933,25825.0,25822.0,0.003]
[1693602586736,0.490933,25825.0,25822.0,0.003]
[1693602586930,0.455933,25825.0,25821.0,0.3202367]
[1693602587136,0.490933,25825.0,25821.0,0.3232367]
[1693602587733,0.490933,25825.0,25822.0,0.003]
[1693602588137,0.490933,25825.0,25821.0,0.3232367]
[1693602588333,0.526933,25825.0,25822.0,0.145326]
[1693602588930,0.526933,25825.0,25822.0,0.148326]
[1693602590334,0.526933,25825.0,25822.0,0.151326]
[1693602591038,0.381622,25825.0,25822.0,0.151326]
[1693602591240,0.381622,25825.0,25822.0,0.26442277]
[1693602591931,0.381622,25825.0,25822.0,0.40974877]
[1693602593533,0.381622,25825.0,25822.0,0.296652]
[1693602594242,0.381622,25825.0,25822.0,0.40974877]
[1693602594440,0.381622,25825.0,25822.0,0.296652]
[1693602594838,0.381622,25825.0,25822.0,0.40603014]
[1693602595333,0.381622,25825.0,25823.0,0.40373677]
[1693602595933,0.381622,25825.0,25823.0,0.29064]
[1693602596641,0.346622,25825.0,25823.0,0.29064]
[1693602596841,0.381622,25825.0,25823.0,0.29364]
[1693602597442,0.345622,25825.0,25823.0,0.29364]
[1693602597743,0.345622,25825.0,25823.0,0.29664]
[1693602597744,0.381622,25825.0,25823.0,0.29664]
[1693602598243,0.526933,25825.0,25823.0,0.006]
[1693602599146,1.872244,25825.0,25823.0,0.006]
[1693602599538,0.526933,25825.0,25823.0,0.006]
[1693602602144,0.55783209,25825.0,25823.0,0.006]
[1693602602835,0.526933,25825.0,25823.0,0.11909677]
[1693602603038,0.361622,25825.0,25823.0,0.151321]
[1693602603238,0.361622,25825.0,25823.0,0.296642]
[1693602603438,0.361622,25825.0,25823.0,0.151321]
[1693602603749,0.506932,25825.0,25823.0,0.006]
[1693602608647,0.503932,25825.0,25823.0,0.006]
[1693602609547,0.468932,25825.0,25823.0,0.003]
[1693602609746,0.501932,25825.0,25823.0,0.006]
[1693602612638,0.501932,25825.0,25823.0,0.151321]
[1693602613450,0.356621,25825.0,25823.0,0.151321]
[1693602614542,0.066,25825.0,25824.0,0.00387]
[1693602614846,0.066,25825.0,25824.0,0.60513]
[1693602615055,0.066,25825.0,25824.0,0.82760491]
[1693602615644,0.444889,25828.0,25825.0,0.03094116]
[1693602615842,0.444889,25828.0,25826.0,0.290608]
[1693602616854,0.446889,25828.0,25826.0,0.290608]
[1693602617555,0.449889,25828.0,25826.0,0.296608]
[1693602618044,0.449889,25828.0,25826.0,0.40970477]
[1693602618244,0.446889,25828.0,25826.0,0.40670477]
[1693602618451,0.446889,25828.0,25826.0,0.293608]
[1693602618452,0.449889,25828.0,25826.0,0.293608]
[1693602618752,0.449889,25828.0,25826.0,0.40670477]
[1693602618953,0.449889,25828.0,25826.0,0.40470477]
[1693602619152,0.449889,25828.0,25826.0,0.40098614]
[1693602619351,0.1593,25828.0,25827.0,0.40369277]
[1693602619942,0.1573,25828.0,25827.0,0.40369277]
[1693602620146,0.1593,25828.0,25827.0,0.51307091]
[1693602620459,0.1593,25828.0,25827.0,0.40369277]
[1693602620757,0.1593,25828.0,25827.0,0.40469277]
[1693602620956,0.1563,25828.0,25827.0,0.40469277]
[1693602621255,0.1593,25828.0,25827.0,0.55386077]
[1693602621466,0.1593,25828.0,25827.0,0.66323891]
[1693602621660,0.10113746,25828.0,25827.0,0.7402048]
[1693602621849,0.10113746,25828.0,25827.0,0.94398574]
[1693602622656,0.09913746,25828.0,25827.0,0.94298574]
[1693602622859,0.09813746,25828.0,25827.0,0.94298574]
[1693602623250,0.09613746,25828.0,25827.0,0.94298574]
[1693602623556,0.09613746,25828.0,25827.0,0.96198574]
[1693602623754,0.926655,25835.0,25828.0,0.30387]
[1693602623954,0.290508,25835.0,25831.0,0.07660571]
[1693602624156,0.290508,25835.0,25832.0,0.65828491]
[1693602624449,0.32207087,25835.0,25832.0,0.54890677]
[1693602624659,0.46732487,25835.0,25832.0,0.14527]
[1693602624964,0.290528,25833.0,25832.0,0.14527]
[1693602625658,0.290528,25833.0,25831.0,0.36715271]
[1693602626361,0.435792,25833.0,25832.0,0.003]
[1693602626562,0.437792,25833.0,25832.0,0.006]
[1693602626756,0.002,25833.0,25832.0,0.90708]
[1693602626961,0.002,25833.0,25832.0,1.06029143]
[1693602627171,0.005,25833.0,25832.0,1.27676634]
[1693602627359,0.005,25833.0,25832.0,1.12355491]
[1693602627753,0.005,25833.0,25832.0,0.53241835]
[1693602628553,0.003,25833.0,25832.0,0.53241835]
[1693602628856,0.005,25833.0,25832.0,0.64651512]
[1693602629166,0.005,25833.0,25832.0,0.53241835]
[1693602629355,0.002,25833.0,25832.0,0.45581]
[1693602629554,0.002,25833.0,25832.0,0.56890677]
[1693602629754,0.002,25833.0,25832.0,0.67828491]
[1693602632465,0.002,25833.0,25832.0,0.82355491]
[1693602632863,0.002,25833.0,25832.0,0.80355491]
[1693602633163,0.002,25833.0,25832.0,0.82355491]
[1693602636169,0.002,25833.0,25832.0,0.80355491]
[1693602638871,0.03297073,25833.0,25832.0,0.80355491]
[1693602639066,0.002,25833.0,25832.0,0.80355491]
[1693602642074,0.002,25833.0,25832.0,0.69045814]
[1693602642275,0.002,25833.0,25832.0,0.43581]
[1693602642469,0.147264,25833.0,25832.0,0.43581]
[1693602642669,0.002,25833.0,25832.0,0.43581]
[1693602643678,0.147264,25833.0,25832.0,0.43581]
[1693602643985,0.167264,25833.0,25832.0,0.43581]
[1693602644881,0.002,25833.0,25832.0,0.69417677]
[1693602645285,0.002,25833.0,25832.0,0.72479344]
[1693602645485,0.002,25833.0,25832.0,0.83417158]
[1693602649294,0.147264,25833.0,25832.0,0.46642667]
[1693602649690,0.002,25833.0,25832.0,0.46642667]
[1693602651592,0.292528,25833.0,25832.0,0.46642667]
[1693602651791,0.292528,25833.0,25831.0,0.290548]
[1693602651792,0.457792,25833.0,25831.0,0.290548]
[1693602651987,0.1606,25832.0,25831.0,0.290548]
[1693602652290,0.1606,25832.0,25831.0,0.145273]
[1693602652291,0.61641,25832.0,25831.0,0.145273]
[1693602652491,0.61641,25832.0,25831.0,0.290549]
[1693602654789,0.61641,25832.0,25831.0,0.297549]
[1693602655288,0.61841,25832.0,25831.0,0.290549]
[1693602655790,0.61841,25832.0,25830.0,0.290558]
[1693602655991,0.76368,25832.0,25830.0,0.145278]
[1693602657097,0.76368,25832.0,25830.0,0.290559]
[1693602657389,0.76368,25832.0,25830.0,0.581121]
[1693602657390,0.1826,25832.0,25830.0,0.581121]
[1693602658099,0.473142,25832.0,25830.0,0.43784]
[1693602658288,0.618414,25832.0,25830.0,0.43784]
[1693602658599,0.618414,25832.0,25830.0,0.43684]
[1693602658788,0.621414,25832.0,25830.0,0.43784]
[1693602659493,0.618414,25832.0,25830.0,0.43684]
[1693602659699,0.621414,25832.0,25830.0,0.43684]
[1693602660293,0.618414,25832.0,25830.0,0.43684]
[1693602660498,0.621414,25832.0,25830.0,0.43684]
[1693602660699,0.619414,25832.0,25830.0,0.43584]
[1693602660899,0.601414,25832.0,25830.0,0.43684]
[1693602661100,0.621414,25832.0,25830.0,0.43684]
[1693602662199,0.618414,25832.0,25830.0,0.43684]
[1693602662386,0.601414,25832.0,25830.0,0.43684]
[1693602663094,0.601414,25832.0,25830.0,0.54993677]
[1693602663293,0.601414,25832.0,25830.0,0.43684]
[1693602664295,0.601414,25832.0,25830.0,0.65931491]
[1693602664895,0.601414,25832.0,25830.0,0.54993677]
[1693602665094,0.601414,25832.0,25830.0,0.65931491]
[1693602665494,0.601414,25832.0,25830.0,0.43684]
[1693602668098,0.601414,25832.0,25830.0,0.291559]
[1693602668300,1.966686,25832.0,25830.0,0.001]
[1693602669603,1.2,25831.0,25830.0,0.001]
[1693602669803,1.781104,25831.0,25830.0,0.001]
[1693602670005,1.801104,25831.0,25830.0,0.001]
[1693602671306,1.801104,25831.0,25827.0,0.290591]
[1693602671307,1.803104,25831.0,25827.0,0.290591]
[1693602672198,1.806104,25831.0,25830.0,0.002]
[1693602672402,2.03808861,25831.0,25830.0,0.002]
[1693602672807,1.806104,25831.0,25830.0,0.002]
[1693602673803,1.803104,25831.0,25827.0,0.438888]
[1693602674004,1.806104,25831.0,25827.0,0.440888]
[1693602674205,1.806104,25831.0,25830.0,0.003]
[1693602674408,2.03808861,25831.0,25830.0,0.003]
[1693602674607,2.03508861,25831.0,25830.0,0.003]
[1693602674905,2.03808861,25831.0,25830.0,0.005]
[1693602675105,2.03808861,25831.0,25830.0,0.002]
[1693602675305,2.03808861,25831.0,25830.0,0.005]
[1693602680106,2.09419236,25831.0,25830.0,0.005]
[1693602680410,1.84220775,25831.0,25830.0,0.005]
[1693602680610,1.86220775,25831.0,25830.0,0.005]
[1693602681409,1.85920775,25831.0,25830.0,0.003]
[1693602681610,1.86220775,25831.0,25830.0,0.005]
[1693602682706,1.84220775,25831.0,25830.0,0.005]
[1693602682906,1.87381675,25831.0,25830.0,0.005]
[1693602683214,1.89381675,25831.0,25830.0,0.005]
[1693602684013,2.16446547,25831.0,25830.0,0.005]
[1693602684518,1.89381675,25831.0,25830.0,0.005]
[1693602684816,2.16465489,25831.0,25830.0,0.005]
[1693602688219,1.89381675,25831.0,25830.0,0.005]
[1693602689117,1.95212438,25831.0,25830.0,0.005]
[1693602690718,1.93212438,25831.0,25830.0,0.005]
[1693602691218,1.95212438,25831.0,25830.0,0.005]
[1693602691417,1.93212438,25831.0,25830.0,0.005]
[1693602691609,1.95212438,25831.0,25830.0,0.005]
[1693602692115,1.93212438,25831.0,25830.0,0.005]
[1693602693718,2.10818003,25831.0,25830.0,0.005]
[1693602693921,0.8498724,25831.0,25830.0,0.005]
[1693602694117,0.8498724,25831.0,25830.0,0.295562]
[1693602694621,0.8498724,25831.0,25830.0,0.005]
[1693602695220,0.94465541,25831.0,25830.0,0.005]
[1693602695616,0.67381727,25831.0,25830.0,0.005]
[1693602695918,0.67081727,25831.0,25830.0,0.003]
[1693602696123,0.67381727,25831.0,25830.0,0.005]
[1693602696318,0.94465541,25831.0,25830.0,0.005]
[1693602696720,0.94165541,25831.0,25830.0,0.003]
[1693602696922,0.94265541,25831.0,25830.0,0.001]
[1693602697220,0.94465541,25831.0,25830.0,0.003]
[1693602698925,0.67381727,25831.0,25830.0,0.003]
[1693602699317,0.98313009,25831.0,25830.0,0.003]
[1693602699522,1.06328205,25831.0,25830.0,0.003]
[1693602700126,0.98313009,25831.0,25830.0,0.003]
[1693602700327,1.06028119,25831.0,25830.0,0.002]
[1693602700524,1.06328119,25831.0,25830.0,0.003]
[1693602701228,1.25412453,25831.0,25830.0,0.003]
[1693602701429,0.94481718,25831.0,25830.0,0.003]
[1693602703327,0.85000055,25831.0,25830.0,0.003]
[1693602710637,0.617713,25831.0,25830.0,0.003]
[1693602711135,0.67381631,25831.0,25830.0,0.003]
[1693602711437,0.94481622,25831.0,25830.0,0.003]
[1693602713645,1.00383006,25831.0,25830.0,0.003]
[1693602714345,1.00376985,25831.0,25830.0,0.003]
[1693602717448,1.12223081,25831.0,25830.0,0.003]
[1693602720255,0.76808166,25831.0,25830.0,0.003]
[1693602720444,0.005,25831.0,25830.0,0.68112883]
[1693602720653,0.005,25831.0,25830.0,0.9395076]
[1693602720851,0.005,25831.0,25830.0,1.04888574]
[1693602721551,0.002,25831.0,25830.0,1.04788574]
[1693602721750,0.002,25831.0,25830.0,1.04588574]
[1693602722352,0.002,25831.0,25830.0,1.07088574]
[1693602723151,0.145265,25833.0,25830.0,1.07088574]
[1693602723357,0.145265,25833.0,25831.0,0.22247491]
[1693602723657,0.145265,25833.0,25832.0,0.58108]
[1693602724355,0.147265,25833.0,25832.0,0.58108]
[1693602724556,0.147265,25833.0,25832.0,0.80355491]
[1693602724745,0.002,25833.0,25832.0,0.80355491]
[1693602725158,0.002,25833.0,25832.0,0.82355491]
[1693602725958,0.147265,25833.0,25832.0,0.82355491]
[1693602726156,0.002,25833.0,25832.0,0.82355491]
[1693602726655,0.66082259,25834.0,25832.0,0.82355491]
[1693602726857,0.002,25833.0,25832.0,0.60108]
[1693602727055,0.002,25833.0,25832.0,0.74635]
[1693602727646,0.002,25833.0,25832.0,0.96882491]
[1693602727851,0.002,25834.0,25832.0,0.96982491]
[1693602728057,0.002,25834.0,25833.0,0.22247491]
[1693602728259,0.002,25834.0,25833.0,0.80353491]
[1693602728459,0.002,25834.0,25833.0,0.82353491]
[1693602728961,0.005,25834.0,25833.0,0.82353491]
[1693602729851,0.003,25834.0,25833.0,0.82353491]
[1693602730456,0.005,25834.0,25833.0,0.82453491]
[1693602731451,0.002,25834.0,25833.0,0.82453491]
[1693602731650,0.005,25834.0,25833.0,0.82453491]
[1693602742070,0.154,25838.0,25833.0,1.15509537]
[1693602742265,0.7814,25839.0,25835.0,0.726265]
[1693602742572,0.619424,25843.0,25837.0,0.72621]
[1693602742772,0.639424,25843.0,25837.0,0.72621]
[1693602744064,0.639424,25843.0,25837.0,0.72821]
[1693602744669,0.639424,25843.0,25837.0,0.72621]
[1693602745270,0.38074183,25843.0,25841.0,0.3]
[1693602745468,0.38074183,25843.0,25842.0,0.80333091]
[1693602745668,0.05174183,25843.0,25842.0,0.80333091]
[1693602746275,0.03174183,25843.0,25842.0,0.80333091]
[1693602746465,0.59641,25844.0,25842.0,0.80333091]
[1693602746665,0.451204,25844.0,25843.0,0.22247491]
[1693602746866,0.451204,25844.0,25843.0,0.80330691]
[1693602747474,0.306,25844.0,25843.0,0.80330691]
[1693602748663,0.761609,25844.0,25843.0,0.435624]
[1693602749065,0.79252083,25844.0,25843.0,0.435624]
[1693602749265,0.79252083,25844.0,25843.0,0.290416]
[1693602749975,0.93772383,25844.0,25843.0,0.290416]
[1693602750478,0.93772383,25844.0,25843.0,0.145208]
[1693602750479,2.13772383,25844.0,25843.0,0.145208]
[1693602750671,1.99252083,25844.0,25843.0,0.435624]
[1693602751676,0.79252083,25844.0,25843.0,0.435624]
[1693602757077,0.79252083,25844.0,25843.0,0.54500214]
[1693602757477,0.79252083,25844.0,25843.0,0.435624]
[1693602759166,0.93772383,25844.0,25842.0,0.290423]
[1693602759373,0.93772383,25844.0,25843.0,0.145208]
[1693602760882,0.93772383,25844.0,25843.0,0.25458614]
[1693602761079,0.93772383,25844.0,25843.0,0.145208]
[1693602761279,0.93772383,25844.0,25843.0,0.435628]
[1693602761877,0.93772383,25844.0,25843.0,0.54872477]
[1693602762580,0.93772383,25844.0,25843.0,0.435628]
[1693602766590,0.93772383,25844.0,25843.0,0.290418]
[1693602767381,0.93772383,25844.0,25842.0,0.145211]
[1693602767886,2.13772383,25844.0,25841.0,0.290436]
[1693602768089,2.13772383,25844.0,25841.0,0.29044]
[1693602769687,2.13772383,25844.0,25841.0,0.29244]
[1693602770285,2.13772383,25844.0,25841.0,0.29444]
[1693602773689,2.11772383,25844.0,25841.0,0.29444]
[1693602773890,2.13772383,25844.0,25841.0,0.29444]
[1693602778084,2.13772383,25844.0,25841.0,0.439662]
[1693602780291,2.13772383,25844.0,25841.0,0.004]
[1693602780486,3.03772383,25844.0,25841.0,0.004]
[1693602782995,3.03772383,25844.0,25841.0,0.006]
[1693602783390,3.27018218,25844.0,25841.0,0.006]
[1693602785296,0.23245835,25843.0,25841.0,0.006]
[1693602785498,0.726075,25842.0,25841.0,0.006]
[1693602786091,0.97853335,25842.0,25841.0,0.006]
[1693602787198,1.03461432,25842.0,25841.0,0.006]
[1693602787401,0.80215597,25842.0,25841.0,0.006]
[1693602787902,0.80215597,25842.0,25841.0,0.003]
[1693602788099,0.80215597,25842.0,25841.0,0.006]
[1693602789294,1.07335738,25842.0,25841.0,0.006]
[1693602790001,2.27335738,25842.0,25841.0,0.006]
[1693602791101,2.00215597,25842.0,25841.0,0.006]
[1693602791291,2.27306442,25842.0,25841.0,0.006]
[1693602791488,2.25306442,25842.0,25841.0,0.006]
[1693602791694,2.00215597,25842.0,25841.0,0.006]
[1693602792600,2.31146879,25842.0,25841.0,0.006]
[1693602792804,2.27303643,25842.0,25841.0,0.006]
[1693602793808,0.580996,25836.0,25834.0,0.290517]
[1693602794018,0.586265,25835.0,25834.0,0.310517]
[1693602794201,0.586265,25835.0,25834.0,0.55275627]
[1693602795406,0.73152,25835.0,25834.0,0.55275627]
[1693602795604,0.73152,25835.0,25834.0,0.59775627]
[1693602796510,0.73452,25835.0,25834.0,0.57275627]
[1693602798106,0.73152,25835.0,25834.0,0.59775627]
[1693602800407,0.73152,25835.0,25834.0,0.74301727]
[1693602801209,0.73152,25835.0,25834.0,0.72301727]
[1693602802608,0.76307396,25835.0,25834.0,0.72301727]
[1693602804806,1.2,25837.0,25834.0,0.72301727]
[1693602804807,0.290503,25836.0,25834.0,1.00137504]
[1693602805011,0.29049,25837.0,25835.0,0.24223927]
[1693602805207,0.145249,25836.0,25835.0,0.84323727]
[1693602805905,0.145249,25836.0,25835.0,1.06571218]
[1693602807208,0.290498,25836.0,25835.0,1.06571218]
[1693602807711,0.290498,25836.0,25835.0,1.08471218]
[1693602810606,0.290498,25836.0,25835.0,0.97533404]
[1693602810814,0.290498,25836.0,25835.0,1.08471218]
[1693602811012,0.290498,25836.0,25835.0,0.97533404]
[1693602811213,0.290498,25836.0,25835.0,0.96833404]
[1693602811408,0.290498,25836.0,25835.0,1.08471218]
[1693602811613,0.290498,25836.0,25835.0,0.86223727]
[1693602812308,0.48385072,25836.0,25835.0,0.97161541]
[1693602812506,0.48385072,25836.0,25835.0,0.97533404]
[1693602812813,0.290498,25836.0,25835.0,0.97533404]
[1693602813012,0.435747,25836.0,25835.0,1.06471218]
[1693602813412,0.62909972,25836.0,25835.0,1.06471218]
[1693602813813,0.62909972,25836.0,25835.0,0.95533404]
[1693602814113,0.62909972,25836.0,25835.0,1.06471218]
[1693602814717,0.62909972,25836.0,25835.0,0.95533404]
[1693602815412,0.62909972,25836.0,25835.0,1.06471218]
[1693602816017,0.435747,25836.0,25835.0,1.06471218]
[1693602816522,0.435747,25836.0,25835.0,0.95533404]
[1693602817017,0.435747,25836.0,25835.0,0.95161541]
[1693602817214,0.435747,25836.0,25835.0,0.69698627]
[1693602817612,0.77434872,25836.0,25835.0,0.55173727]
[1693602818416,0.77434872,25836.0,25835.0,0.53373727]
[1693602818417,0.63509972,25836.0,25835.0,0.53373727]
[1693602818915,0.441747,25836.0,25835.0,0.53373727]
[1693602819527,0.441747,25836.0,25835.0,0.64683404]
[1693602820020,0.441747,25836.0,25835.0,0.67899227]
[1693602820914,0.63509972,25836.0,25835.0,0.67899227]
[1693602821114,0.63522283,25836.0,25835.0,0.53373727]
[1693602823218,0.441747,25836.0,25835.0,0.53373727]
[1693602828820,1.786996,25836.0,25835.0,0.24323927]
[1693602829125,2.09525699,25836.0,25835.0,0.24323927]
[1693602829320,1.863086,25836.0,25835.0,0.00082454]
[1693602830118,2.03935285,25836.0,25835.0,0.001]
[1693602834132,1.2,25832.0,25829.0,0.145287]
[1693602834325,0.581108,25831.0,25830.0,0.24227503]
[1693602834521,0.735908,25831.0,25830.0,0.24227503]
[1693602836225,0.735908,25831.0,25830.0,0.38755803]
[1693602836421,0.735908,25831.0,25830.0,0.42455803]
[1693602837332,0.735908,25831.0,25830.0,0.42555803]
[1693602837333,0.901208,25831.0,25830.0,0.42555803]
[1693602838118,1.09479346,25831.0,25830.0,0.42555803]
[1693602838726,0.898208,25831.0,25830.0,0.42455803]
[1693602839036,0.898208,25831.0,25830.0,0.46155803]
[1693602840233,1.11179346,25831.0,25830.0,0.31627503]
[1693602841240,0.918208,25831.0,25830.0,0.074]
[1693602842134,1.71179346,25831.0,25830.0,0.074]
[1693602843530,1.518208,25831.0,25830.0,0.074]
[1693602845133,1.498208,25831.0,25830.0,0.074]
[1693602846936,1.52901441,25831.0,25830.0,0.074]
[1693602848330,1.54901441,25831.0,25830.0,0.074]
[1693602850228,2.74901441,25831.0,25830.0,0.074]